fUSD/lending_fUSD_20250308
["ID","MTS","AMOUNT","RATE_DAILY","PERIOD"]
[355687035,1741458633639,-500.0,9.481e-05,2]
[355687036,1741458633649,-500.0,9.481e-05,2]
[355687037,1741458633659,-516.22,9.481e-05,2]
[355687038,1741458633669,-500.0,9.481e-05,2]
[355687039,1741458633678,-500.0,9.481e-05,2]
[355687040,1741458633688,-500.0,9.481e-05,2]
[355687041,1741458633698,-500.0,9.481e-05,2]
[355687042,1741458633709,-500.0,9.481e-05,2]
[355687043,1741458633719,-500.0,9.481e-05,2]
[355687044,1741458633729,-500.0,9.481e-05,2]
[355687045,1741458633739,-500.0,9.481e-05,2]
[355687046,1741458633749,-500.0,9.481e-05,2]
[355687047,1741458633759,-500.0,9.481e-05,2]
[355687048,1741458633768,-500.0,9.481e-05,2]
[355687049,1741458634059,-500.0,9.481e-05,2]
[355687050,1741458634070,-500.0,9.481e-05,2]
[355687051,1741458634081,-500.0,9.481e-05,2]
[355687052,1741458634092,-500.0,9.481e-05,2]
[355687053,1741458634102,-500.0,9.481e-05,2]
[355687054,1741458634111,-500.0,9.481e-05,2]
[355687055,1741458634121,-500.0,9.481e-05,2]
[355687056,1741458634131,-500.0,9.481e-05,2]
[355687057,1741458634140,-500.0,9.481e-05,2]
[355687058,1741458634150,-500.0,9.481e-05,2]
[355687059,1741458634160,-500.0,9.481e-05,2]
[355687060,1741458634170,-500.0,9.481e-05,2]
[355687061,1741458634179,-500.0,9.481e-05,2]
[355687062,1741458634188,-500.0,9.481e-05,2]
[355687063,1741458634198,-500.0,9.481e-05,2]
[355687064,1741458634208,-637.53,9.481e-05,2]
[355687065,1741458634218,-500.0,9.481e-05,2]
[355687066,1741458634227,-500.0,9.481e-05,2]
[355687067,1741458634237,-551.66,9.481e-05,2]
[355687068,1741458634246,-500.0,9.481e-05,2]
[355687069,1741458634255,-500.0,9.481e-05,2]
[355687070,1741458634265,-500.0,9.481e-05,2]
[355687071,1741458634275,-500.0,9.481e-05,2]
[355687072,1741458634284,-716.54,9.481e-05,2]
[355687073,1741458634294,-500.0,9.481e-05,2]
[355687074,1741458634303,-500.0,9.481e-05,2]
[355687075,1741458634313,-500.0,9.481e-05,2]
[355687076,1741458634324,-500.0,9.481e-05,2]
[355687077,1741458634333,-1467.69,9.481e-05,2]
[355687078,1741458634343,-500.0,9.481e-05,2]
[355687079,1741458634352,-500.0,9.481e-05,2]
[355687080,1741458634362,-500.0,9.481e-05,2]
[355687081,1741458634371,-1000.0,9.481e-05,2]
[355687082,1741458634381,-500.0,9.481e-05,2]
[355687083,1741458634391,-1836.43,9.481e-05,2]
[355687084,1741458634401,-892.18,9.481e-05,2]
[355687085,1741458634410,-500.0,9.481e-05,2]
[355687086,1741458634420,-500.0,9.481e-05,2]
[355687087,1741458634429,-543.36,9.481e-05,2]
[355687088,1741458634438,-790.59,9.481e-05,2]
[355687089,1741458634448,-633.98,9.481e-05,2]
[355687090,1741458634459,-500.0,9.481e-05,2]
[355687091,1741458634469,-813.31,9.481e-05,2]
[355687092,1741458634478,-529.82,9.481e-05,2]
[355687093,1741458634487,-652.21,9.481e-05,2]
[355687094,1741458634496,-1374.79,9.481e-05,2]
[355687095,1741458634506,-1011.72,9.481e-05,2]
[355687096,1741458634515,-500.0,9.481e-05,2]
[355687097,1741458634525,-677.36,9.481e-05,2]
[355687098,1741458634534,-752.39,9.481e-05,2]
[355687099,1741458634544,-500.0,9.481e-05,2]
[355687100,1741458634553,-500.0,9.481e-05,2]
[355687101,1741458634562,-1105.09,9.481e-05,2]
[355687102,1741458634572,-576.41,9.481e-05,2]
[355687103,1741458634582,-500.0,9.481e-05,2]
[355687104,1741458634592,-500.0,9.481e-05,2]
[355687105,1741458634602,-1110.02,9.481e-05,2]
[355687106,1741458634614,-600.34,9.481e-05,2]
[355687107,1741458634624,-472.31,9.481e-05,2]
[355687108,1741458634633,-500.0,9.481e-05,2]
[355687109,1741458634643,-500.0,9.481e-05,2]
[355687110,1741458634653,-500.0,9.481e-05,2]
[355687111,1741458634662,-500.0,9.481e-05,2]
[355687112,1741458634672,-2410.46,9.481e-05,2]
[355687113,1741458634682,-1087.26,9.481e-05,2]
[355687114,1741458634692,-1507.12,9.481e-05,2]
[355687115,1741458634703,-872.86,9.481e-05,2]
[355687116,1741458634712,-500.0,9.481e-05,2]
[355687117,1741458634722,-603.42,9.481e-05,2]
[355687118,1741458634732,-557.95,9.481e-05,2]
[355687119,1741458634742,-500.0,9.481e-05,2]
[355687120,1741458634751,-500.0,9.481e-05,2]
[355687121,1741458634761,-500.0,9.481e-05,2]
[355687122,1741458634771,-500.0,9.481e-05,2]
[355687123,1741458634780,-1553.83,9.481e-05,2]
[355687124,1741458634790,-1223.11,9.481e-05,2]
[355687125,1741458634799,-233.88310313,9.481e-05,2]
[355687126,1741458634809,-500.0,9.481e-05,2]
[355687127,1741458634818,-866.84,9.481e-05,2]
[355687128,1741458634828,-247.44,9.481e-05,2]
[355687129,1741458634838,-2727.37,9.481e-05,2]
[355687130,1741458634850,-500.0,9.481e-05,2]
[355687131,1741458634860,-500.0,9.481e-05,2]
[355687132,1741458634869,-500.0,9.481e-05,2]
[355687133,1741458634879,-500.0,9.481e-05,2]
[355687134,1741458634889,-162.25770135,9.481e-05,2]
[355687135,1741458634898,-500.0,9.481e-05,2]
[355687136,1741458634908,-2337.86,9.481e-05,2]
[355687137,1741458634917,-500.0,9.481e-05,2]
[355687138,1741458634927,-682.66,9.481e-05,2]
[355687139,1741458634937,-500.0,9.481e-05,2]
[355687140,1741458634947,-500.0,9.481e-05,2]
[355687141,1741458634957,-500.0,9.481e-05,2]
[355687142,1741458634967,-1394.05,9.481e-05,2]
[355687143,1741458634977,-2724.07,9.481e-05,2]
[355687144,1741458634987,-500.0,9.481e-05,2]
[355687145,1741458634997,-500.0,9.481e-05,2]
[355687146,1741458635008,-576.07,9.481e-05,2]
[355687147,1741458635018,-761.51,9.481e-05,2]
[355687148,1741458635028,-737.72,9.481e-05,2]
[355687149,1741458635038,-500.0,9.481e-05,2]
[355687150,1741458635047,-500.0,9.481e-05,2]
[355687151,1741458635058,-903.64,9.481e-05,2]
[355687152,1741458635069,-1039.65,9.481e-05,2]
[355687153,1741458635079,-808.78,9.481e-05,2]
[355687154,1741458635089,-500.0,9.481e-05,2]
[355687155,1741458635100,-501.09,9.481e-05,2]
[355687156,1741458635111,-500.0,9.481e-05,2]
[355687157,1741458635122,-500.0,9.481e-05,2]
[355687158,1741458635134,-1038.33,9.481e-05,2]
[355687159,1741458635145,-4753.46,9.481e-05,2]
[355687160,1741458635157,-500.0,9.481e-05,2]
[355687161,1741458635168,-696.01,9.481e-05,2]
[355687162,1741458635178,-500.0,9.481e-05,2]
[355687163,1741458635189,-500.0,9.481e-05,2]
[355687164,1741458635199,-1133.21,9.481e-05,2]
[355687165,1741458635210,-826.84,9.481e-05,2]
[355687166,1741458635220,-500.0,9.481e-05,2]
[355687167,1741458635229,-1065.05,9.481e-05,2]
[355687168,1741458635239,-500.0,9.481e-05,2]
[355687169,1741458635248,-2326.25,9.481e-05,2]
[355687170,1741458635257,-500.0,9.481e-05,2]
[355687171,1741458635267,-500.0,9.481e-05,2]
[355687172,1741458635277,-500.0,9.481e-05,2]
[355687173,1741458635287,-1041.85,9.481e-05,2]
[355687174,1741458635296,-1957.9,9.481e-05,2]
[355687175,1741458635306,-500.0,9.481e-05,2]
[355687176,1741458635316,-500.0,9.481e-05,2]
[355687177,1741458635326,-858.83,9.481e-05,2]
[355687178,1741458635337,-1008.64,9.481e-05,2]
[355687179,1741458635347,-927.97,9.481e-05,2]
[355687180,1741458635356,-10264.95,9.481e-05,2]
[355687181,1741458635366,-500.0,9.481e-05,2]
[355687182,1741458635375,-500.0,9.481e-05,2]
[355687183,1741458635385,-853.22,9.481e-05,2]
[355687184,1741458635395,-1233.5,9.481e-05,2]
[355687185,1741458635404,-1020.81,9.481e-05,2]
[355687186,1741458635414,-1195.62,9.481e-05,2]
[355687187,1741458635423,-510.15,9.481e-05,2]
[355687188,1741458635432,-500.0,9.481e-05,2]
[355687189,1741458635442,-858.26,9.481e-05,2]
[355687190,1741458635451,-500.0,9.481e-05,2]
[355687191,1741458635460,-733.96,9.481e-05,2]
[355687192,1741458635470,-1188.39,9.481e-05,2]
[355687193,1741458635480,-500.0,9.481e-05,2]
[355687194,1741458635490,-4720.92,9.481e-05,2]
[355687195,1741458635499,-2590.13,9.481e-05,2]
[355687196,1741458635508,-500.0,9.481e-05,2]
[355687197,1741458635518,-500.0,9.481e-05,2]
[355687198,1741458635527,-1229.82,9.481e-05,2]
[355687199,1741458635537,-1362.8,9.481e-05,2]
[355687200,1741458635547,-500.0,9.481e-05,2]
[355687201,1741458635556,-565.94,9.481e-05,2]
[355687202,1741458635565,-500.0,9.481e-05,2]
[355687203,1741458635575,-7337.79,9.481e-05,2]
[355687204,1741458635584,-500.0,9.481e-05,2]
[355687205,1741458635594,-673.86,9.481e-05,2]
[355687206,1741458635603,-566.39,9.481e-05,2]
[355687207,1741458635612,-500.0,9.481e-05,2]
[355687208,1741458635622,-500.0,9.481e-05,2]
[355687209,1741458635631,-500.0,9.481e-05,2]
[355687210,1741458635641,-1105.31,9.481e-05,2]
[355687211,1741458635651,-500.0,9.481e-05,2]
[355687212,1741458635660,-853.4,9.481e-05,2]
[355687213,1741458635670,-500.0,9.481e-05,2]
[355687214,1741458635679,-500.0,9.481e-05,2]
[355687215,1741458635688,-3513.47,9.481e-05,2]
[355687216,1741458635698,-1923.49,9.481e-05,2]
[355687217,1741458635707,-500.0,9.481e-05,2]
[355687218,1741458635717,-1012.43,9.481e-05,2]
[355687219,1741458635727,-500.0,9.481e-05,2]
[355687220,1741458635736,-500.0,9.481e-05,2]
[355687221,1741458635746,-959.18,9.481e-05,2]
[355687222,1741458635756,-500.0,9.482e-05,2]
[355687223,1741458635766,-500.0,9.499e-05,2]
[355687224,1741458635776,-529.46,9.499e-05,2]
[355687225,1741458635786,-641.34792075,9.499e-05,2]
[355687226,1741458635796,-519.82,9.499e-05,2]
[355687227,1741458635805,-578.24,9.499e-05,2]
[355687228,1741458635815,-2100.0,9.5e-05,3]
[355687229,1741458635824,-160.07,9.507e-05,2]
[355687230,1741458635834,-1000.0,9.521e-05,2]
[355687231,1741458635843,-150.0,9.558e-05,2]
[355687232,1741458635853,-642.0,9.558e-05,2]
[355687233,1741458635863,-160.07,9.561e-05,2]
[355687234,1741458635873,-2600.0,9.6e-05,3]
[355687235,1741458635883,-162.25770135,9.654e-05,2]
[355687236,1741458635892,-5000.0,9.655e-05,2]
[355687237,1741458635903,-1000.0,9.656e-05,2]
[355687238,1741458635912,-500.0,9.7e-05,3]
[355687239,1741458635922,-1000.0,9.7e-05,2]
[355687240,1741458635932,-615.08150123,9.754e-05,2]
[355687241,1741458635942,-183.31829168,9.755e-05,2]
[355687242,1741458635952,-500.0,9.755e-05,2]
[355687243,1741458635961,-500.0,9.755e-05,2]
[355687244,1741458635972,-500.0,9.755e-05,2]
[355687245,1741458635982,-500.0,9.755e-05,2]
[355687246,1741458635992,-588.24,9.755e-05,2]
[355687247,1741458636002,-500.0,9.755e-05,2]
[355687248,1741458636015,-500.0,9.755e-05,2]
[355687249,1741458636025,-500.0,9.755e-05,2]
[355687250,1741458636035,-500.0,9.755e-05,2]
[355687251,1741458636047,-500.0,9.755e-05,2]
[355687252,1741458636057,-500.0,9.755e-05,2]
[355687253,1741458636067,-532.83994896,9.755e-05,2]
[355687254,1741458636077,-500.0,9.755e-05,2]
[355687255,1741458636089,-500.0,9.755e-05,2]
[355687256,1741458636099,-500.0,9.755e-05,2]
[355687257,1741458636109,-500.0,9.755e-05,2]
[355687258,1741458636119,-500.0,9.755e-05,2]
[355687259,1741458636129,-500.0,9.755e-05,2]
[355687260,1741458636138,-500.0,9.755e-05,2]
[355687261,1741458636147,-500.0,9.755e-05,2]
[355687262,1741458636158,-500.0,9.755e-05,2]
[355687263,1741458636167,-500.0,9.755e-05,2]
[355687264,1741458636177,-500.0,9.755e-05,2]
[355687265,1741458636186,-262.82225618,9.755e-05,2]
[355687266,1741458636199,-500.0,9.755e-05,2]
[355687267,1741458636209,-500.0,9.755e-05,2]
[355687268,1741458636219,-515.59,9.755e-05,2]
[355687269,1741458636228,-500.0,9.755e-05,2]
[355687270,1741458636238,-500.0,9.755e-05,2]
[355687271,1741458636248,-500.0,9.755e-05,2]
[355687272,1741458636258,-667.45,9.755e-05,2]
[355687273,1741458636268,-242.25757569,9.755e-05,2]
[355687274,1741458636278,-500.0,9.755e-05,2]
[355687275,1741458636288,-500.0,9.755e-05,2]
[355687276,1741458636298,-500.0,9.755e-05,2]
[355687277,1741458636308,-500.0,9.755e-05,2]
[355687278,1741458636317,-500.0,9.755e-05,2]
[355687279,1741458636327,-500.0,9.755e-05,2]
[355687280,1741458636336,-500.0,9.755e-05,2]
[355687281,1741458636346,-500.0,9.755e-05,2]
[355687282,1741458636356,-500.0,9.755e-05,2]
[355687283,1741458636365,-516.22,9.755e-05,2]
[355687284,1741458636375,-500.0,9.755e-05,2]
[355687285,1741458636384,-500.0,9.755e-05,2]
[355687286,1741458636393,-500.0,9.755e-05,2]
[355687287,1741458636403,-500.0,9.755e-05,2]
[355687288,1741458636413,-500.0,9.755e-05,2]
[355687289,1741458636422,-500.0,9.755e-05,2]
[355687290,1741458636432,-500.0,9.755e-05,2]
[355687291,1741458636441,-500.0,9.755e-05,2]
[355687292,1741458636451,-364.52477809,9.755e-05,2]
[355687293,1741458636460,-500.0,9.755e-05,2]
[355687294,1741458636470,-500.0,9.755e-05,2]
[355687295,1741458636479,-500.0,9.755e-05,2]
[355687296,1741458636489,-500.0,9.755e-05,2]
[355687297,1741458636498,-500.0,9.755e-05,2]
[355687298,1741458636508,-500.0,9.755e-05,2]
[355687299,1741458636518,-500.0,9.755e-05,2]
[355687300,1741458636527,-500.0,9.755e-05,2]
[355687301,1741458636537,-500.0,9.755e-05,2]
[355687302,1741458636547,-500.0,9.755e-05,2]
[355687303,1741458636556,-500.0,9.755e-05,2]
[355687304,1741458636566,-500.0,9.755e-05,2]
[355687305,1741458636575,-500.0,9.755e-05,2]
[355687306,1741458636584,-637.53,9.755e-05,2]
[355687307,1741458636594,-551.66,9.755e-05,2]
[355687308,1741458636603,-500.0,9.755e-05,2]
[355687309,1741458636613,-500.0,9.755e-05,2]
[355687310,1741458636622,-716.54,9.755e-05,2]
[355687311,1741458636631,-500.0,9.755e-05,2]
[355687312,1741458636641,-500.0,9.755e-05,2]
[355687313,1741458636650,-500.0,9.755e-05,2]
[355687314,1741458636660,-1467.69,9.755e-05,2]
[355687315,1741458636669,-500.0,9.755e-05,2]
[355687316,1741458636679,-497.21446962,9.755e-05,2]
[355687317,1741458636689,-500.0,9.755e-05,2]
[355687318,1741458636700,-1000.0,9.755e-05,2]
[355687319,1741458636710,-500.0,9.755e-05,2]
[355687320,1741458636720,-1836.43,9.755e-05,2]
[355687321,1741458636730,-892.18,9.755e-05,2]
[355687322,1741458636739,-500.0,9.755e-05,2]
[355687323,1741458636750,-500.0,9.755e-05,2]
[355687324,1741458636759,-543.36,9.755e-05,2]
[355687325,1741458636768,-790.59,9.755e-05,2]
[355687326,1741458636778,-633.98,9.755e-05,2]
[355687327,1741458636788,-813.31,9.755e-05,2]
[355687328,1741458636797,-529.82,9.755e-05,2]
[355687329,1741458636807,-652.21,9.755e-05,2]
[355687330,1741458636815,-1374.79,9.755e-05,2]
[355687331,1741458636824,-1011.72,9.755e-05,2]
[355687332,1741458636834,-500.0,9.755e-05,2]
[355687333,1741458636844,-677.36,9.755e-05,2]
[355687334,1741458636853,-752.39,9.755e-05,2]
[355687335,1741458636863,-1105.09,9.755e-05,2]
[355687336,1741458636872,-500.0,9.755e-05,2]
[355687337,1741458636883,-576.41,9.755e-05,2]
[355687338,1741458636893,-500.0,9.755e-05,2]
[355687339,1741458636903,-1110.02,9.755e-05,2]
[355687340,1741458636912,-600.34,9.755e-05,2]
[355687341,1741458636921,-500.0,9.755e-05,2]
[355687342,1741458636931,-500.0,9.755e-05,2]
[355687343,1741458636941,-500.0,9.755e-05,2]
[355687344,1741458636950,-2410.46,9.755e-05,2]
[355687345,1741458636960,-1087.26,9.755e-05,2]
[355687346,1741458636970,-1507.12,9.755e-05,2]
[355687347,1741458636980,-872.86,9.755e-05,2]
[355687348,1741458636989,-603.42,9.755e-05,2]
[355687349,1741458636999,-557.95,9.755e-05,2]
[355687350,1741458637012,-500.0,9.755e-05,2]
[355687351,1741458637021,-500.0,9.755e-05,2]
[355687352,1741458637031,-1553.83,9.755e-05,2]
[355687353,1741458637040,-1223.11,9.755e-05,2]
[355687354,1741458637049,-500.0,9.755e-05,2]
[355687355,1741458637060,-866.84,9.755e-05,2]
[355687356,1741458637070,-2727.37,9.755e-05,2]
[355687357,1741458637079,-500.0,9.755e-05,2]
[355687358,1741458637090,-2337.86,9.755e-05,2]
[355687359,1741458637101,-682.66,9.755e-05,2]
[355687360,1741458637112,-500.0,9.755e-05,2]
[355687361,1741458637122,-601.03,9.755e-05,2]
[355687362,1741458637131,-500.0,9.755e-05,2]
[355687363,1741458637141,-1394.05,9.755e-05,2]
[355687364,1741458637150,-2724.07,9.755e-05,2]
[355687365,1741458637160,-500.0,9.755e-05,2]
[355687366,1741458637170,-576.07,9.755e-05,2]
[355687367,1741458637180,-761.51,9.755e-05,2]
[355687368,1741458637190,-737.72,9.755e-05,2]
[355687369,1741458637200,-500.0,9.755e-05,2]
[355687370,1741458637211,-500.0,9.755e-05,2]
[355687371,1741458637221,-903.64,9.755e-05,2]
[355687372,1741458637230,-1039.65,9.755e-05,2]
[355687373,1741458637240,-808.78,9.755e-05,2]
[355687374,1741458637249,-501.09,9.755e-05,2]
[355687375,1741458637259,-500.0,9.755e-05,2]
[355687376,1741458637269,-500.0,9.755e-05,2]
[355687377,1741458637278,-1038.33,9.755e-05,2]
[355687378,1741458637288,-4753.46,9.755e-05,2]
[355687379,1741458637297,-500.0,9.755e-05,2]
[355687380,1741458637307,-696.01,9.755e-05,2]
[355687381,1741458637316,-500.0,9.755e-05,2]
[355687382,1741458637325,-500.0,9.755e-05,2]
[355687383,1741458637335,-1133.21,9.755e-05,2]
[355687384,1741458637344,-826.84,9.755e-05,2]
[355687385,1741458637354,-500.0,9.755e-05,2]
[355687386,1741458637364,-1065.05,9.755e-05,2]
[355687387,1741458637374,-500.0,9.755e-05,2]
[355687388,1741458637384,-2326.25,9.755e-05,2]
[355687389,1741458637393,-500.0,9.755e-05,2]
[355687390,1741458637402,-500.0,9.755e-05,2]
[355687391,1741458637412,-500.0,9.755e-05,2]
[355687392,1741458637421,-1041.85,9.755e-05,2]
[355687393,1741458637431,-1957.9,9.755e-05,2]
[355687394,1741458637441,-858.83,9.755e-05,2]
[355687395,1741458637450,-1008.64,9.755e-05,2]
[355687396,1741458637463,-927.97,9.755e-05,2]
[355687397,1741458637472,-10264.95,9.755e-05,2]
[355687398,1741458637482,-500.0,9.755e-05,2]
[355687399,1741458637492,-500.0,9.755e-05,2]
[355687400,1741458637501,-853.22,9.755e-05,2]
[355687401,1741458637511,-1233.5,9.755e-05,2]
[355687402,1741458637521,-1020.81,9.755e-05,2]
[355687403,1741458637530,-1195.62,9.755e-05,2]
[355687404,1741458637541,-510.15,9.755e-05,2]
[355687405,1741458637550,-500.0,9.755e-05,2]
[355687406,1741458637560,-858.26,9.755e-05,2]
[355687407,1741458637570,-500.0,9.755e-05,2]
[355687408,1741458637579,-733.96,9.755e-05,2]
[355687409,1741458637589,-1188.39,9.755e-05,2]
[355687410,1741458637599,-500.0,9.755e-05,2]
[355687411,1741458637609,-4720.92,9.755e-05,2]
[355687412,1741458637618,-2590.13,9.755e-05,2]
[355687413,1741458637628,-500.0,9.755e-05,2]
[355687414,1741458637637,-500.0,9.755e-05,2]
[355687415,1741458637646,-1229.82,9.755e-05,2]
[355687416,1741458637656,-1362.8,9.755e-05,2]
[355687417,1741458637666,-500.0,9.755e-05,2]
[355687418,1741458637676,-565.94,9.755e-05,2]
[355687419,1741458637685,-500.0,9.755e-05,2]
[355687420,1741458637696,-7337.79,9.755e-05,2]
[355687422,1741458637706,-500.0,9.755e-05,2]
[355687424,1741458637715,-673.86,9.755e-05,2]
[355687426,1741458637728,-566.39,9.755e-05,2]
[355687428,1741458637738,-500.0,9.755e-05,2]
[355687429,1741458637748,-500.0,9.755e-05,2]
[355687430,1741458637758,-224.6087165,9.755e-05,2]
[355687431,1741458637768,-1105.31,9.755e-05,2]
[355687432,1741458637778,-500.0,9.755e-05,2]
[355687433,1741458637787,-853.4,9.755e-05,2]
[355687434,1741458637798,-500.0,9.755e-05,2]
[355687435,1741458637807,-3513.47,9.755e-05,2]
[355687436,1741458637817,-1923.49,9.755e-05,2]
[355687437,1741458637827,-500.0,9.755e-05,2]
[355687439,1741458637836,-1012.43,9.755e-05,2]
[355687440,1741458637845,-500.0,9.755e-05,2]
[355687441,1741458637855,-500.0,9.755e-05,2]
[355687442,1741458637864,-959.18,9.755e-05,2]
[355687443,1741458637874,-500.0,9.756e-05,2]
[355687445,1741458637884,-500.0,9.773e-05,2]
[355687447,1741458637893,-529.46,9.773e-05,2]
[355687449,1741458637903,-519.82,9.773e-05,2]
[355687451,1741458637912,-168.377,9.776e-05,2]
[355687453,1741458637922,-2612.993,9.776e-05,2]
[355687455,1741458637932,-12756.50908377,9.799e-05,2]
[355687457,1741458637941,-500.0,9.8e-05,3]
[355687459,1741458637951,-1152.0,9.8e-05,2]
[355687461,1741458637961,-10478.85853417,9.822e-05,2]
[355687463,1741458637970,-162.25770135,9.827e-05,2]
[355687465,1741458637980,-671.6888416,9.863e-05,2]
[355687467,1741458637989,-2516.9533,9.9e-05,2]
[355687469,1741458637999,-500.0,9.9e-05,3]
[355687471,1741458638010,-80456.0,9.973e-05,2]
[355687473,1741458638020,-160.27739978,9.973e-05,2]
[355687475,1741458638030,-150.10603463,9.973e-05,2]
[355687477,1741458638039,-363.52560036,9.973e-05,2]
[355687479,1741458638049,-160.88220478,9.973e-05,2]
[355687481,1741458638060,-501.82070001,9.973e-05,2]
[355687483,1741458638070,-155.05600244,9.973e-05,2]
[355687485,1741458638079,-158.25192019,9.973e-05,2]
[355687487,1741458638089,-205.27214592,9.973e-05,2]
[355687489,1741458638099,-319.90399824,9.98e-05,2]
[355687491,1741458638108,-5800.0,9.985e-05,2]
[355687515,1741458638315,-1681.000523,9.997e-05,2]
[355687516,1741458638325,-1292.4509818,9.997e-05,2]
[355687518,1741458638342,-1205.15026183,9.998e-05,3]
[355687520,1741458638354,-2044.78,9.999e-05,2]
[355687522,1741458638364,-7599.92040526,9.999e-05,2]
[355687525,1741458638374,-3126.0,9.999e-05,2]
[355687527,1741458638383,-315.67488735,9.999e-05,2]
[355687529,1741458638393,-36317.02198692,0.0001,2]
[355687533,1741458638648,-1267.1695585,0.0001,2]
[355687534,1741458638695,-651.90054365,9.481e-05,2]
[355687535,1741458638707,-16.17945635,9.481e-05,2]
[355687536,1741458638717,-500.0,9.499e-05,2]
[355687537,1741458638727,-513.11753128,0.0001,2]
[355687538,1741458638742,-1036.92088886,0.0001,2]
[355687539,1741458638753,-537.44719657,0.0001,2]
[355687540,1741458638765,-1997.21734795,0.0001,2]
[355687541,1741458639483,-500.0,9.481e-05,2]
[355687542,1741458639493,-5000.0,9.5e-05,3]
[355687543,1741458639503,-6300.0,9.6e-05,3]
[355687544,1741458639512,-668.08,9.755e-05,2]
[355687545,1741458639522,-500.0,9.755e-05,2]
[355687546,1741458639531,-454.03164949,9.773e-05,2]
[355687547,1741458639541,-160.31218132,9.973e-05,2]
[355687548,1741458639550,-1981.00113144,0.0001,2]
[355687549,1741458639569,-932.58255358,0.0001,2]
[355687550,1741458639580,-453.98185202,0.0001,2]
[355687551,1741458639591,-26337.30316764,0.0001,2]
[355687552,1741458639618,-2895.21341157,0.0001,2]
[355687553,1741458639667,-363.19955428,0.0001,2]
[355687559,1741458640072,-1200.0,9.7e-05,3]
[355687560,1741458640082,-998.60000019,0.0001,2]
[355687561,1741458640096,-491.47098,0.0001,2]
[355687562,1741458640108,-1223.25882463,0.0001,2]
[355687563,1741458640155,-500.0,9.481e-05,2]
[355687564,1741458640164,-1428444.93384117,0.0001,2]
[355687565,1741458640175,-9534.2533957,0.0001,2]
[355687566,1741458640186,-66031.82979263,0.0001,2]
[355687577,1741458642424,-500.0,9.481e-05,2]
[355687578,1741458642434,-500.0,9.755e-05,2]
[355687579,1741458642445,-500.0,9.755e-05,2]
[355687580,1741458642455,-1200.0,9.8e-05,3]
[355687581,1741458642464,-1200.0,9.9e-05,3]
[355687582,1741458642474,-142364.39048521,0.0001,2]
[355687583,1741458642494,-597.86,9.481e-05,2]
[355687584,1741458642504,-187.48500871,0.0001,2]
[355687599,1741458644290,-6841.57888411,0.0001,2]
[355687600,1741458645424,-597.86,9.755e-05,2]
[355687601,1741458645434,-2809.0,0.0001,2]
[355687602,1741458645444,-173426.08829201,0.0001,2]
[355687603,1741458645455,-693.20000004,0.0001,2]
[355687604,1741458645480,-500.0,9.481e-05,2]
[355687605,1741458645490,-1947.61328194,0.0001,2]
[355687606,1741458645723,-2000.0,0.0001,2]
[355687607,1741458645749,-500.0,9.755e-05,2]
[355687608,1741458645759,-252828.84740428,0.0001,2]
[355687609,1741458645772,-259190.73285967,0.0001,2]
[355687610,1741458645784,-131552.11481053,0.0001,2]
[355687811,1741459831585,-708.97359572,8.219e-05,2]
[355687812,1741459831639,-724.0,8.219e-05,2]
[355687813,1741459831651,-162.86640428,8.219e-05,2]
[355687814,1741459831660,-444.88359572,8.253e-05,2]
[355687815,1741459831767,-105.11640428,8.253e-05,2]
[355687816,1741459831777,-150.0,8.253e-05,2]
[355687817,1741459831787,-460.15,8.278e-05,2]
[355687818,1741459831796,-165.2,8.287e-05,2]
[355687819,1741459831806,-250.0,8.333e-05,2]
[355687820,1741459831816,-165.2,8.386e-05,2]
[355687821,1741459831825,-165.2,8.486e-05,2]
[355687822,1741459831835,-797.36,8.508e-05,2]
[355687823,1741459831845,-1000.0,8.535e-05,2]
[355687824,1741459831854,-165.2,8.585e-05,2]
[355687825,1741459831864,-165.2,8.685e-05,2]